bitfinex-derivatives/quotes_ETHF0:USTF0_20250103
["timestamp","ask_amount","ask_price","bid_price","bid_amount"]
[1735894860460,3.49947,3431.4,3431.2,0.29168]
[1735894860461,0.29168,3431.3,3431.2,0.29168]
[1735894862667,2.57877871,3431.3,3431.2,0.29168]
[1735894864258,2.28709871,3431.3,3431.2,0.29168]
[1735894865164,2.28709871,3431.3,3431.2,2.61264863]
[1735894865968,3.2078,3431.4,3431.3,0.29168]
[1735894865969,5.49489871,3431.4,3431.3,0.29168]
[1735894866674,2.28709871,3431.4,3431.3,0.29168]
[1735894867375,40.8,3431.8,3431.7,0.29164]
[1735894867670,3.2078,3432.0,3431.9,0.29163]
[1735894867873,0.29159,3432.4,3432.3,0.29158]
[1735894868067,41.09159,3432.4,3432.3,0.29158]
[1735894869471,40.8,3432.4,3432.3,0.29158]
[1735894869672,44.66739404,3432.4,3432.3,4.8770985]
[1735894870173,3.86739404,3432.4,3432.3,4.8770985]
[1735894871072,0.43754181,3432.4,3432.3,7.16985776]
[1735894871281,3.2078,3432.5,3432.4,0.29158]
[1735894871478,3.2078,3432.5,3432.4,1.43358]
[1735894879882,3.2078,3432.5,3432.1,4.57280086]
[1735894880077,0.29159,3432.4,3432.3,0.29158]
[1735894881782,3.49938,3432.5,3432.4,0.29158]
[1735894882692,3.2078,3432.5,3432.4,0.29158]
[1735894886482,40.8,3432.8,3432.7,0.29156]
[1735894891379,3.49934,3433.0,3432.9,0.29154]
[1735894891994,44.29934,3433.0,3432.9,0.29154]
[1735894897691,0.29156,3432.8,3432.7,0.29155]
[1735894898286,0.29158,3432.4,3432.3,4.86439086]
[1735894898887,3.2078,3432.5,3432.2,0.2916]
[1735894899096,0.29159,3432.3,3432.2,0.2916]
[1735894901701,3.2078,3432.5,3431.9,0.72906]
[1735894901898,0.29159,3432.4,3432.3,0.29158]
[1735894903799,3.2078,3432.5,3431.9,3.05002863]
[1735894904000,0.29162,3432.1,3432.0,0.29161]
[1735894905397,41.09162,3432.1,3432.0,0.29161]
[1735894906899,0.29163,3432.0,3431.9,0.29162]
[1735894907401,0.29163,3431.9,3431.8,0.29163]
[1735894917906,46.58440904,3432.1,3432.0,0.29162]
[1735894918505,44.29942,3432.1,3432.0,0.29162]
[1735894920803,45.72772,3432.1,3432.0,0.29162]
[1735894923009,42.2283,3432.1,3432.0,0.29162]
[1735894923212,0.29163,3432.0,3431.9,0.29162]
[1735894925706,42.2283,3432.1,3431.9,0.29162]
[1735894925912,42.51991,3432.1,3432.0,0.29162]
[1735894934132,43.58571,3432.1,3432.0,0.29162]
[1735894934715,0.29163,3432.0,3431.9,0.29162]
[1735894935918,1.0200596,3432.0,3431.6,5.59286046]
[1735894936119,3.49944,3431.8,3431.7,0.29164]
[1735894936418,3.49944,3431.8,3431.7,4.86444086]
[1735894937527,3.49944,3431.8,3431.7,0.29164]
[1735894938125,0.29164,3431.8,3431.7,0.29164]
[1735894939219,0.29163,3432.0,3431.9,0.29162]
[1735894939418,43.58571,3432.1,3432.0,0.29162]
[1735894941823,0.29163,3432.0,3431.9,0.29162]
[1735894942124,0.29163,3431.9,3431.8,4.57280086]
[1735894942719,0.29163,3431.9,3431.8,1.88170086]
[1735894943221,1.71893,3431.9,3431.8,1.88170086]
[1735894943422,1.71893,3431.9,3431.0,0.2917]
[1735894943423,0.29169,3431.1,3431.0,7.16997776]
[1735894943627,3.49949,3431.1,3431.0,7.16997776]
[1735894944019,3.49949,3431.1,3431.0,6.87827776]
[1735894944223,5.82238984,3431.1,3431.0,6.87827776]
[1735894944416,6.05627237,3431.1,3431.0,6.87827776]
[1735894944619,46.56458237,3431.1,3430.8,6.87827776]
[1735894944821,0.29171,3430.9,3430.8,6.87827776]
[1735894946136,0.29171,3430.9,3430.3,0.29176]
[1735894946137,0.29175,3430.4,3430.3,0.29176]
[1735894946923,3.49955,3430.5,3430.4,0.29175]
[1735894948231,0.29176,3430.4,3430.3,0.29176]
[1735894951630,3.49955,3430.5,3430.4,0.29175]
[1735894955629,0.29177,3430.4,3430.3,0.29176]
[1735894962739,0.29177,3430.2,3430.1,1.142]
[1735894962932,3.49957,3430.2,3430.1,1.43378]
[1735894966045,3.49957,3430.2,3430.1,0.29178]
[1735894966835,3.2078,3430.2,3430.1,0.29178]
[1735894967139,0.29175,3430.5,3430.1,0.29178]
[1735894967342,3.49955,3430.6,3430.5,0.29175]
[1735894967845,3.2078,3431.0,3430.9,0.29171]
[1735894968547,4.6313,3431.0,3430.9,0.29171]
[1735894970744,4.923,3431.0,3430.9,0.29171]
[1735894970939,0.29172,3430.9,3430.8,1.43371]
[1735894971141,5.98891,3431.0,3430.9,0.29171]
[1735894972043,5.6972,3431.0,3430.9,0.29171]
[1735894974655,2.4894,3431.0,3430.9,0.29171]
[1735894975956,2.4894,3431.0,3430.9,2.61460984]
[1735894979060,2.57240227,3432.1,3430.9,7.32289984]
[1735894979357,2.28079227,3432.1,3432.0,0.29162]
[1735894979565,0.29161,3432.1,3432.0,0.29162]
[1735894980360,0.29163,3432.0,3431.9,0.29162]
[1735894983251,44.0078,3432.2,3431.8,1.141]
[1735894983561,44.29941,3432.2,3432.1,0.29161]
[1735894984064,44.0078,3432.2,3432.1,0.29161]
[1735894986165,3.2078,3432.2,3432.1,0.29161]
[1735894986360,3.2078,3432.2,3432.1,2.61450984]
[1735894987659,44.0078,3432.7,3432.3,0.72897]
[1735894987866,44.0078,3432.7,3432.6,0.29157]
[1735894988865,40.8,3432.7,3432.6,0.29157]
[1735894989261,40.8,3432.7,3432.6,1.43257]
[1735894989459,0.29153,3433.0,3432.9,0.29154]
[1735894989855,41.09153,3433.0,3432.9,0.29154]
[1735894990057,40.8,3433.0,3432.9,0.29154]
[1735894990266,3.2078,3433.1,3433.0,0.29153]
[1735894990462,0.29149,3433.5,3433.0,2.61442984]
[1735894990670,5.78008227,3433.6,3433.5,0.29149]
[1735894990969,5.48859227,3433.6,3432.7,2.32289984]
[1735894991267,3.49932,3433.2,3433.1,0.29152]
[1735894992865,0.29152,3433.1,3433.0,0.29152]
[1735894994371,3.2078,3433.2,3432.7,1.141]
[1735894994570,3.49932,3433.2,3433.1,0.29152]
[1735894995466,44.29932,3433.2,3433.1,0.29152]
[1735894996072,44.0078,3433.2,3433.1,0.29152]
[1735894996467,44.29932,3433.2,3433.1,0.29152]
[1735894998282,44.29932,3433.2,3432.8,0.72887]
[1735894998283,44.0078,3433.2,3432.4,2.32289984]
[1735894998576,0.29154,3433.0,3432.9,0.29153]
[1735895006281,0.29153,3433.1,3433.0,0.29152]
[1735895008181,44.29932,3433.2,3433.1,0.29152]
[1735895009480,44.0078,3433.2,3433.1,0.29152]
[1735895010474,44.29932,3433.2,3433.1,0.29152]
[1735895020089,44.29932,3433.2,3432.8,0.72888]
[1735895020090,0.29155,3432.9,3432.8,1.43153]
[1735895020286,0.72885,3433.0,3432.2,7.60728776]
[1735895020585,0.29159,3432.5,3432.4,0.29157]
[1735895020783,44.29939,3432.5,3432.4,0.29157]
[1735895024191,46.58018227,3432.5,3432.4,0.29157]
[1735895024992,5.78018227,3432.5,3432.4,0.29157]
[1735895027793,3.49939,3432.5,3432.4,0.29157]
[1735895029191,5.78018227,3432.5,3432.4,0.29157]
[1735895030699,3.49939,3432.5,3432.4,0.29157]
[1735895034400,5.78067024,3432.5,3432.4,0.29157]
[1735895037005,3.49939,3432.5,3432.4,0.29157]
[1735895038905,3.2078,3432.5,3432.4,0.29157]
[1735895039508,3.49938,3432.5,3432.4,0.29157]
[1735895040005,3.2078,3432.5,3432.4,0.29157]
[1735895043008,43.08128024,3432.9,3432.8,0.29155]
[1735895043317,40.8,3432.9,3432.8,1.43155]
[1735895055111,2.28128024,3433.3,3433.2,0.29152]
[1735895055312,2.57279024,3433.3,3433.2,0.29152]
[1735895055512,43.37279024,3433.3,3433.2,0.29152]
[1735895056115,43.08128024,3433.3,3433.2,0.29152]
[1735895056319,43.08128024,3433.3,3433.2,1.31072903]
[1735895057318,40.8,3433.3,3433.2,1.31072903]
[1735895057515,2.28128024,3433.4,3433.3,0.29151]
[1735895058428,5.48908024,3433.5,3433.4,0.2915]
[1735895060227,2.28128024,3433.5,3433.4,0.2915]
[1735895061228,3.2078,3433.6,3433.5,0.29149]
[1735895061923,3.49928,3433.6,3433.5,0.29149]
[1735895070133,0.29148,3433.6,3433.5,0.29149]
[1735895070434,3.49928,3433.6,3433.5,0.29149]
[1735895079036,0.29151,3433.4,3433.3,0.29149]
[1735895080224,0.29151,3433.4,3433.3,1.31058154]
[1735895082336,0.29151,3433.4,3433.3,5.88647024]
[1735895084728,0.2915,3433.5,3433.4,0.29149]
[1735895084933,0.2915,3433.5,3433.4,1.31058154]
[1735895089834,0.2915,3433.5,3433.4,8.1811999]
[1735895090842,5.48908024,3433.6,3433.5,0.29149]
[1735895091939,5.78056024,3433.6,3433.5,0.29149]
[1735895092144,5.78056024,3433.6,3433.5,1.31058154]
[1735895094845,2.57276024,3433.6,3433.5,1.31058154]
[1735895098251,0.29148,3433.6,3433.5,8.1811999]
[1735895100948,47.42898841,3433.7,3433.5,7.8897099]
[1735895101150,47.72046841,3433.7,3433.6,0.29148]
[1735895101351,44.29928,3433.7,3433.6,0.29148]
[1735895102645,41.09148,3433.7,3433.6,0.29148]
[1735895102846,44.95869568,3433.7,3433.6,7.16209836]
[1735895103046,45.19159568,3433.7,3433.6,7.16209836]
[1735895105358,41.76175259,3433.7,3433.6,7.16209836]
[1735895106355,42.78084413,3433.7,3433.6,6.87061836]
[1735895106651,41.76175259,3433.7,3433.6,6.87061836]
[1735895106856,41.76175259,3433.7,3433.6,0.29148]
[1735895108554,46.04014682,3433.7,3433.5,6.87061836]
[1735895108744,0.29148,3433.6,3433.5,7.16210836]
[1735895109851,1.74794413,3433.6,3433.5,6.87061836]
[1735895110456,6.74794413,3433.6,3433.5,6.87061836]
[1735895110953,0.72877,3433.4,3433.0,4.59093687]
[1735895111158,3.49932,3433.1,3433.0,4.59093687]
[1735895111656,3.2078,3433.5,3433.0,6.62911995]
[1735895111853,0.29151,3433.4,3433.3,1.31060154]
[1735895112055,0.29151,3433.4,3433.3,1.01909154]
[1735895112254,0.29151,3433.3,3433.2,0.29151]
[1735895113763,0.29151,3433.3,3433.2,4.88244687]
[1735895113764,4.15542359,3433.3,3433.2,4.88244687]
[1735895114458,4.15542359,3433.3,3433.2,4.59093687]
[1735895114763,4.15542359,3433.3,3433.2,4.88245687]
[1735895116463,5.11652359,3433.3,3433.2,4.88245687]
[1735895116863,4.82501359,3433.3,3433.2,4.88245687]
[1735895117566,3.245082,3433.3,3433.2,7.16213836]
[1735895118860,0.9611,3433.3,3433.2,0.29152]
[1735895119669,0.9611,3433.3,3433.2,1.43052]
[1735895120164,1.1941,3433.3,3433.2,1.43052]
[1735895121670,1.1941,3433.3,3433.2,10.60155701]
[1735895125466,1.1941,3433.3,3433.2,11.62064855]
[1735895126769,1.1941,3433.3,3433.2,10.60155701]
[1735895126966,2.50470154,3433.3,3433.2,9.17103701]
[1735895127774,43.30470154,3433.3,3433.2,9.17103701]
[1735895128268,0.29152,3433.1,3433.0,4.5846071]
[1735895129069,41.09152,3433.1,3433.0,4.5846071]
[1735895129271,44.29932,3433.1,3433.0,4.5846071]
[1735895129672,0.29155,3433.0,3432.9,0.29153]
[1735895130777,47.55666754,3433.1,3432.7,4.5846071]
[1735895131072,3.3302,3433.1,3433.0,0.29153]
[1735895131662,0.1224,3433.1,3433.0,0.29153]
[1735895132668,0.1224,3433.1,3433.0,1.43053]
[1735895135277,0.1224,3433.1,3433.0,12.89432627]
[1735895136372,0.1224,3433.1,3433.0,1.43053]
[1735895138172,0.1224,3433.1,3433.0,0.29153]
[1735895138778,3.62172,3433.1,3433.0,9.45322887]
[1735895139373,44.42172,3433.1,3433.0,9.45322887]
[1735895139978,44.42172,3433.1,3433.0,0.29153]
[1735895141674,44.1302,3433.1,3433.0,0.29153]
[1735895142084,44.1302,3433.1,3433.0,2.61114642]
[1735895142284,0.1224,3433.1,3433.0,2.61114642]
[1735895142782,0.1224,3433.1,3433.0,0.29153]
[1735895145880,0.233,3433.3,3433.0,9.16083556]
[1735895146077,0.52451,3433.3,3433.2,0.29152]
[1735895146582,0.233,3433.3,3433.2,0.29152]
[1735895146782,0.52451,3433.3,3433.2,0.29152]
[1735895147186,0.52451,3433.3,3433.2,4.87231092]
[1735895147779,0.233,3433.3,3433.2,4.87231092]
[1735895149379,0.233,3433.3,3433.2,0.29152]
[1735895149985,0.466,3433.3,3433.2,0.29152]
[1735895152090,0.466,3433.3,3433.2,7.16270638]
[1735895153190,0.466,3433.3,3433.2,0.29152]
[1735895154992,0.5881,3433.3,3433.2,0.29152]
[1735895155789,0.5881,3433.3,3433.2,4.87280061]
[1735895156983,0.5881,3433.3,3433.2,0.29152]
[1735895157886,0.5881,3433.3,3433.2,7.16270638]
[1735895158392,41.3881,3433.3,3433.2,7.16270638]
[1735895161896,0.5881,3433.3,3433.2,7.16270638]
[1735895162695,0.5881,3433.3,3433.2,0.29152]
[1735895164995,0.5881,3433.3,3433.2,7.16270638]
[1735895170098,0.5881,3433.3,3433.2,0.29152]
[1735895171509,0.5881,3433.3,3433.2,9.45235556]
[1735895173298,0.5881,3433.3,3433.2,0.29152]
[1735895174389,0.1221,3433.3,3433.2,0.29152]
[1735895174602,1e-05,3433.3,3433.2,0.29152]
[1735895174895,1e-05,3433.3,3433.2,1.5669777]
[1735895175705,1e-05,3433.3,3433.2,5.29152]
[1735895176399,1e-05,3433.3,3433.2,6.56696539]
[1735895176789,1e-05,3433.3,3433.2,1.56696539]
[1735895176995,1e-05,3433.3,3433.2,5.29152]
[1735895177396,1e-05,3433.3,3433.2,0.29152]
[1735895177997,1e-05,3433.3,3433.2,5.29152]
[1735895178497,1e-05,3433.3,3433.2,6.56695818]
[1735895181406,1e-05,3433.3,3433.2,5.29152]
[1735895182202,1e-05,3433.3,3433.2,8.49932]
[1735895182406,40.8,3434.3,3433.2,8.2078]
[1735895182592,3.2078,3434.4,3434.3,0.29142]
[1735895182798,3.2078,3434.4,3434.3,1.43042]
[1735895184705,2.28258465,3434.7,3434.3,1.43042]
[1735895184903,0.1317,3434.4,3434.3,1.43042]
[1735895187010,0.1317,3434.4,3434.3,8.29587525]
[1735895187911,0.8596,3434.4,3434.3,8.29587525]
[1735895190006,3.2078,3435.2,3434.3,8.29587525]
[1735895190007,3.2078,3435.2,3434.3,13.00445525]
[1735895190208,3.2078,3435.2,3435.1,2.60986467]
[1735895190404,3.2078,3435.2,3435.1,3.74786467]
[1735895191713,0.29128,3436.0,3435.7,0.2913]
[1735895191714,2.28258465,3435.8,3435.7,0.2913]
[1735895191906,2.28258465,3435.8,3435.7,2.60981467]
[1735895193110,2.28258465,3435.8,3435.7,0.2913]
[1735895193310,0.29129,3436.0,3435.9,0.29129]
[1735895194213,0.29129,3435.9,3435.8,1.138]
[1735895194802,0.29129,3435.9,3435.8,1.4293]
[1735895195009,41.09129,3435.9,3435.8,1.4293]
[1735895196113,40.8,3435.9,3435.8,1.4293]
[1735895201015,41.0328,3435.9,3435.8,1.4293]
[1735895213220,41.0328,3435.9,3435.8,0.2913]
[1735895213420,41.32409,3435.9,3435.8,0.2913]
[1735895213618,41.0328,3435.9,3435.8,0.2913]
[1735895216531,0.29131,3435.7,3435.6,0.2913]
[1735895217032,41.0328,3435.9,3435.3,3.2078]
[1735895217225,41.0328,3435.9,3435.5,0.29131]
[1735895217226,0.29132,3435.6,3435.5,0.29131]
[1735895219623,3.49912,3435.6,3435.5,0.29131]
[1735895220431,3.49911,3435.6,3435.5,0.29131]
[1735895222232,3.2078,3435.6,3435.5,0.29131]
[1735895223136,0.2328,3435.9,3435.8,0.2913]
[1735895223335,0.2328,3435.9,3435.8,2.60981467]
[1735895228633,0.2328,3435.9,3435.8,5.81761467]
[1735895228834,0.2328,3435.9,3435.8,6.2728276]
[1735895229933,0.2328,3435.9,3435.8,13.13828285]
[1735895231741,0.2328,3435.9,3435.8,6.2728276]
[1735895233040,0.2328,3435.9,3435.8,3.95431293]
[1735895233241,0.2328,3435.9,3435.8,6.2728276]
[1735895233542,0.2328,3435.9,3435.8,15.42676793]
[1735895234839,0.2328,3435.9,3435.8,10.84679084]
[1735895235036,0.2328,3435.9,3435.8,11.98379084]
[1735895236341,2.51538465,3435.9,3435.8,11.98379084]
[1735895237138,2.86168465,3435.9,3435.8,11.98379084]
[1735895237740,2.86168465,3435.9,3435.8,7.4098276]
[1735895241647,0.5791,3435.9,3435.8,7.4098276]
[1735895242133,0.5791,3435.9,3435.8,4.2020276]
[1735895244546,0.5791,3435.9,3435.8,11.07123092]
[1735895244844,0.5791,3435.9,3435.8,9.93423092]
[1735895245152,0.5791,3435.9,3435.8,8.75271625]
[1735895245153,0.87039,3435.9,3435.8,8.75271625]
[1735895245651,0.87039,3435.9,3435.8,8.46141625]
[1735895246045,0.87039,3435.9,3435.8,8.75271625]
[1735895247846,0.5791,3435.9,3435.8,8.78167977]
[1735895249249,0.5791,3435.9,3435.8,11.07123092]
[1735895249844,0.58055444,3435.9,3435.8,11.07123092]
[1735895250953,0.58055444,3435.9,3435.8,11.07130879]
[1735895251155,0.87184444,3435.9,3435.8,11.07130879]
[1735895251654,0.87184444,3435.9,3435.8,4.20210547]
[1735895253055,0.87184444,3435.9,3435.8,8.78167545]
[1735895253249,0.87184444,3435.9,3435.8,8.32638465]
[1735895253455,0.87184444,3435.9,3435.8,8.78168621]
[1735895254373,0.87184444,3435.9,3435.8,6.17187154]
[1735895255763,0.87184444,3435.9,3435.8,1.59230156]
[1735895256270,0.87184444,3435.9,3435.8,0.45530156]
[1735895257360,3.15335398,3435.9,3435.8,0.45530156]
[1735895257561,3.15335398,3435.9,3435.8,0.74660156]
[1735895257960,3.15335398,3435.9,3435.8,0.45530156]
[1735895258865,0.87184444,3435.9,3435.8,0.45530156]
[1735895259063,0.87184444,3435.9,3435.8,0.74660156]
[1735895259263,0.87184444,3435.9,3435.8,0.45530156]
[1735895259572,0.87184444,3435.9,3435.8,0.74660156]
[1735895260869,0.87184444,3435.9,3435.8,0.45530156]
[1735895261167,0.87184444,3435.9,3435.8,0.74660156]
[1735895261365,3.15308378,3435.9,3435.8,0.74660156]
[1735895261561,3.15308378,3435.9,3435.8,0.45530156]
[1735895262860,9.29831198,3435.9,3435.8,0.45530156]
[1735895263570,50.09831198,3435.9,3435.8,0.45530156]
[1735895264668,47.10900558,3435.9,3435.8,0.45530156]
[1735895266276,51.67762896,3435.9,3435.8,0.45530156]
[1735895267465,47.10900558,3435.9,3435.8,0.45530156]
[1735895267670,49.42504162,3435.9,3435.8,0.45530156]
[1735895267872,0.29135,3435.2,3435.1,4.57956998]
[1735895268072,3.49915,3435.2,3435.1,4.57956998]
[1735895268772,0.29135,3435.1,3435.0,0.29136]
[1735895269271,0.29136,3435.0,3434.9,6.00793998]
[1735895269471,41.09136,3435.0,3434.9,6.00793998]
[1735895269772,41.09136,3435.0,3434.9,8.32397602]
[1735895270165,0.29136,3435.0,3434.9,8.32397602]
[1735895270767,3.2078,3435.2,3435.1,0.29135]
[1735895272477,3.2078,3435.2,3435.1,4.87091998]
[1735895273572,3.49915,3435.2,3435.1,4.87091998]
[1735895274788,3.2078,3435.2,3435.1,4.87091998]
[1735895275079,3.49915,3435.2,3435.1,4.87091998]
[1735895275581,3.49915,3435.2,3435.1,4.57956998]
[1735895276278,44.29915,3435.2,3435.1,4.57956998]
[1735895276478,44.29915,3435.2,3434.9,6.89560602]
[1735895276679,0.29136,3435.0,3434.9,6.89560602]
[1735895277584,0.29136,3435.0,3434.9,7.18697602]
[1735895277776,0.29136,3435.0,3434.9,2.60740604]
[1735895278577,0.29136,3435.0,3434.9,2.31603604]
[1735895279182,0.29136,3435.0,3434.9,6.89560602]
[1735895279781,0.29136,3435.0,3434.9,7.18697602]
[1735895280083,0.29136,3435.0,3434.9,6.89560602]
[1735895280283,0.29136,3435.0,3434.9,7.35101911]
[1735895280477,0.29136,3435.0,3434.9,5.03498307]
[1735895281987,0.29136,3435.0,3434.9,0.45541309]
[1735895284684,2.27979049,3435.1,3434.5,4.57956998]
[1735895284877,0.2914,3434.6,3434.5,4.87096998]
[1735895285389,0.6378,3434.6,3434.5,4.87096998]
[1735895286276,0.6378,3434.6,3434.5,0.2914]
[1735895288791,0.3464,3434.6,3434.5,0.2914]
[1735895289182,0.6378,3434.6,3434.5,0.2914]
[1735895289488,0.3464,3434.6,3434.5,0.2914]
[1735895290593,0.3464,3434.6,3434.5,4.87096998]
[1735895291297,0.5793,3434.6,3434.5,4.87096998]
[1735895292183,0.5793,3434.6,3434.5,5.88934632]
[1735895292882,0.5793,3434.6,3434.5,1.30977634]
[1735895295093,0.5793,3434.6,3434.5,10.53595268]
[1735895296092,2.27979049,3435.5,3435.4,0.29133]
[1735895296292,0.45335934,3435.7,3435.4,13.97295714]
[1735895296488,0.45335934,3435.7,3435.6,0.29131]
[1735895296880,0.45335934,3435.7,3435.6,5.29131]
[1735895297086,0.45335934,3435.7,3435.6,5.74437042]
[1735895297288,0.00145444,3435.9,3435.8,0.2913]
[1735895297486,0.00145444,3435.9,3435.8,3.95216042]
[1735895298186,0.00145444,3435.9,3435.8,6.26623899]
[1735895298386,0.00145444,3435.9,3435.8,23.00841995]
[1735895299384,4.44e-06,3435.9,3435.8,23.00841995]
[1735895300091,4.44e-06,3435.9,3435.8,13.86775334]
[1735895302799,4.44e-06,3435.9,3435.8,15.39553772]
[1735895304096,0.16560444,3435.9,3435.8,6.26623899]
[1735895305796,0.16560444,3435.9,3435.8,3.05843899]
[1735895305998,0.16560444,3435.9,3435.8,6.26623899]
[1735895306801,0.16560444,3435.9,3435.8,13.10694623]
[1735895310402,0.16560444,3435.9,3435.8,6.26623899]
[1735895312206,0.16560444,3435.9,3435.8,10.82285892]
[1735895313604,40.8,3436.7,3436.6,0.29123]
[1735895313800,40.8,3436.7,3436.6,3.74230857]
[1735895313998,41.3793,3436.7,3436.6,4.19536899]
[1735895316202,0.5793,3436.7,3436.6,4.19536899]
[1735895329823,0.5793,3436.7,3436.6,3.74230857]
[1735895330122,0.5793,3436.7,3436.6,4.19605789]
[1735895330328,0.5793,3436.7,3436.6,2.89895888]
[1735895336221,0.5793,3436.7,3436.6,2.89893453]
[1735895336424,0.5793,3436.7,3436.6,3.91591409]
[1735895336619,0.5793,3436.7,3436.6,2.89893453]
[1735895337217,0.5793,3436.7,3436.6,3.91591409]
[1735895337517,0.5793,3436.7,3436.6,2.89893453]
[1735895338419,0.5793,3436.7,3436.6,7.45555446]
[1735895339027,0.5793,3436.7,3436.6,8.47253402]
[1735895340336,0.5793,3436.7,3436.6,3.91591409]
[1735895340524,0.5793,3436.7,3436.6,2.89893453]
[1735895341137,0.5793,3436.7,3436.6,3.91591409]
[1735895341336,0.5793,3436.7,3436.6,2.89893453]
[1735895341628,0.5793,3436.7,3436.6,3.91591409]
[1735895341828,0.5793,3436.7,3436.6,14.73274443]
[1735895342328,44.0078,3437.4,3437.3,0.29117]
[1735895342533,44.0078,3437.4,3437.3,1.30814956]
[1735895342723,44.5871,3437.4,3437.3,1.76187453]
[1735895343532,3.7871,3437.4,3437.3,6.34000341]
[1735895343724,3.7871,3437.4,3437.3,5.88627844]
[1735895343923,3.7871,3437.4,3437.3,6.34028677]
[1735895344926,3.7871,3437.4,3437.3,1.76215789]
[1735895345429,3.7871,3437.4,3437.3,2.89815789]
[1735895350831,0.5793,3437.4,3437.3,2.89815789]
[1735895352032,0.5793,3437.4,3437.3,7.47584365]
[1735895355131,0.5793,3437.4,3437.3,12.05441565]
[1735895357250,0.5793,3437.4,3437.3,10.50991549]
[1735895358544,0.5793,3437.4,3437.3,9.49293593]
[1735895358845,0.5793,3437.4,3437.3,10.50991549]
[1735895360151,0.5793,3437.4,3437.3,2.89815789]
[1735895361051,0.87046,3437.4,3437.3,2.89815789]
[1735895361644,5.87046,3437.4,3437.3,0.45400833]
[1735895362851,16.92164255,3437.4,3437.3,0.45400833]
[1735895363757,20.12944255,3437.4,3437.3,0.45400833]
[1735895363960,15.12944255,3437.4,3437.3,1.47098789]
[1735895364154,14.83828255,3437.4,3437.3,1.47098789]
[1735895364454,9.41866332,3437.4,3437.3,1.76215789]
[1735895364653,9.12750332,3437.4,3437.3,1.76215789]
[1735895365249,8.35530741,3437.4,3437.3,1.76215789]
[1735895366251,8.35530741,3437.4,3437.3,0.74517833]
[1735895366656,7.6505082,3437.4,3437.3,0.74517833]
[1735895368053,7.9416682,3437.4,3437.3,0.74517833]
[1735895368255,4.51521619,3437.4,3437.3,0.74517833]
[1735895368457,4.51521619,3437.4,3437.3,0.45400833]
[1735895369555,4.07826,3437.4,3437.3,0.74517833]
[1735895369961,4.07826,3437.4,3437.3,0.45400833]
[1735895370460,4.07826,3437.4,3437.3,0.74517833]
[1735895370659,4.07826,3437.4,3437.3,0.45400833]
[1735895372057,4.51522923,3437.4,3437.3,0.45400833]
[1735895379368,9.51522923,3437.4,3437.3,0.45400833]
[1735895379768,50.31522923,3437.4,3437.3,0.45400833]
[1735895380474,45.31522923,3437.4,3437.3,0.45400833]
[1735895381164,49.8786922,3437.4,3437.3,0.45400833]
[1735895382064,45.31522923,3437.4,3437.3,0.45400833]
[1735895382865,44.87826,3437.4,3437.3,0.45400833]
[1735895383462,48.73781325,3437.4,3437.3,0.45400833]
[1735895384272,45.31521837,3437.4,3437.3,0.45400833]
[1735895384670,0.29119,3437.1,3437.0,0.29119]
[1735895384875,0.87049,3437.1,3437.0,0.29119]
[1735895385066,0.87049,3437.1,3437.0,0.74434528]
[1735895387075,0.5793,3437.1,3437.0,3.05760469]
[1735895387264,0.29117,3437.3,3437.2,0.29117]
[1735895387667,0.87047,3437.3,3437.2,0.29117]
[1735895387868,0.87047,3437.3,3437.2,0.74447696]
[1735895388086,0.5793,3437.3,3437.2,0.74447696]
[1735895388572,0.87047,3437.3,3437.2,0.74447696]
[1735895388773,0.5793,3437.3,3437.2,0.74447696]
[1735895389068,0.5793,3437.3,3437.2,5.32161594]
[1735895389268,0.87047,3437.3,3437.2,5.32161594]
[1735895390065,0.5793,3437.3,3437.2,5.32161594]
[1735895390468,0.87047,3437.3,3437.2,5.32161594]
[1735895390670,0.5793,3437.3,3437.2,5.32161594]
[1735895390869,0.87047,3437.3,3437.2,5.32161594]
[1735895391477,0.5793,3437.3,3437.2,5.32161594]
[1735895392469,0.87047,3437.3,3437.2,5.32161594]
[1735895392674,0.5793,3437.3,3437.2,5.32161594]
[1735895395073,0.29117,3437.3,3437.2,5.03044594]
[1735895395282,0.87047,3437.3,3437.2,5.03044594]
[1735895395683,0.87047,3437.3,3437.2,0.45330696]
[1735895396678,0.87047,3437.3,3437.2,0.74448696]
[1735895400779,0.87047,3437.3,3437.2,0.45330696]
[1735895401574,0.87047,3437.3,3437.2,0.74448696]
[1735895407180,0.87047,3437.3,3437.2,5.32162594]
[1735895409188,4.07827,3437.3,3437.2,5.32162594]
[1735895411085,4.07827,3437.3,3437.2,0.74448696]
[1735895411386,3.7871,3437.3,3437.2,0.74448696]
[1735895411586,4.07827,3437.3,3437.2,0.74448696]
[1735895414686,3.7871,3437.3,3437.2,0.74448696]
[1735895415081,4.07827,3437.3,3437.2,0.74448696]
[1735895416784,4.07827,3437.3,3437.2,7.61019544]
[1735895417382,4.07827,3437.3,3437.2,8.33840253]
[1735895417587,3.42288362,3437.3,3437.2,8.33840253]
[1735895418692,3.42288362,3437.3,3437.2,7.61019544]
[1735895418889,3.2078,3437.3,3437.2,7.61019544]
[1735895420187,3.2078,3437.3,3437.2,8.6270663]
[1735895420490,3.49897,3437.3,3437.2,8.6270663]
[1735895420687,3.2078,3437.3,3437.2,8.6270663]
[1735895423286,0.29115,3437.5,3437.4,0.29116]
[1735895423487,0.29115,3437.5,3437.4,1.30803086]
[1735895423796,0.29115,3437.5,3437.4,1.76133782]
[1735895424291,0.29115,3437.5,3437.4,8.63156053]
[1735895425896,2.2847709,3437.6,3437.5,0.29115]
[1735895426493,2.2847709,3437.6,3437.5,0.74445696]
[1735895426991,2.5759109,3437.6,3437.5,0.74445696]
[1735895428595,0.29114,3437.6,3437.5,5.3254002]
[1735895431195,0.29114,3437.6,3437.5,0.74445696]
[1735895433090,3.49894,3437.6,3437.5,0.74445696]
[1735895436900,0.29114,3437.6,3437.5,0.74445696]
[1735895437094,3.49894,3437.6,3437.5,0.74445696]
[1735895438997,5.78541795,3437.6,3437.5,0.74445696]
[1735895440199,3.49894,3437.6,3437.5,0.74445696]
[1735895440394,3.49894,3437.6,3437.5,0.45330696]
[1735895440598,3.49894,3437.6,3437.5,0.74445696]